bitfinex/quotes_SOLUSD_20241115
["timestamp","ask_amount","ask_price","bid_price","bid_amount"]
[1731635999907,38.03281623,210.07,210.0,9.49563223]
[1731636001392,28.537184,210.07,210.01,9.49563223]
[1731636001703,38.03281623,210.07,210.0,9.49563223]
[1731636002200,38.03281623,210.07,210.02,9.49563223]
[1731636002201,23.776884,210.07,210.02,9.49563223]
[1731636002405,23.776884,210.08,210.03,9.49563223]
[1731636003191,23.776884,210.09,210.03,9.49563223]
[1731636003582,9.49563223,210.09,210.03,9.49563223]
[1731636003814,23.776884,210.08,210.03,9.49563223]
[1731636004315,6.0458,210.12,210.06,9.49563223]
[1731636004506,10.805,210.12,210.06,9.49563223]
[1731636004707,20.30063223,210.12,210.05,9.49563223]
[1731636005395,23.776884,210.11,210.05,9.49563223]
[1731636006188,9.49563223,210.06,209.97,16.523]
[1731636006392,9.49563223,210.0,209.93,9.49563223]
[1731636006599,23.776884,209.99,209.92,15.8917]
[1731636006799,23.776884,209.97,209.92,15.8917]
[1731636007303,23.776884,209.95,209.86,21.3622]
[1731636007651,23.776884,209.95,209.9,9.49563223]
[1731636007799,33.27251623,209.97,209.9,9.49563223]
[1731636008418,38.03511623,209.97,209.9,9.49563223]
[1731636008717,23.776884,209.95,209.89,9.49563223]
[1731636008923,23.776884,209.95,209.9,9.49563223]
[1731636009227,23.776884,209.96,209.9,9.49563223]
[1731636010112,23.776884,209.96,209.92,9.49563223]
[1731636010314,9.49563223,210.02,209.95,9.49563223]
[1731636010515,6.0302,210.03,209.97,9.49563223]
[1731636010712,9.49563223,210.06,209.99,9.49563223]
[1731636010912,9.49563223,210.07,209.99,9.49563223]
[1731636011214,9.49563223,210.06,209.99,9.49563223]
[1731636011426,9.49563223,210.05,209.98,9.49563223]
[1731636011628,9.49563223,210.0,209.89,0.12549]
[1731636011930,9.49563223,210.0,209.92,9.49563223]
[1731636012430,9.49563223,210.02,209.94,9.49563223]
[1731636012734,20.0,210.04,209.98,9.49563223]
[1731636012910,9.49563223,210.01,209.94,9.49563223]
[1731636013114,9.49563223,210.0,209.93,9.49563223]
[1731636013327,0.12549,210.03,209.89,0.12549]
[1731636013328,9.49563223,210.01,209.94,9.49563223]
[1731636013733,166.3605,210.06,209.98,9.49563223]
[1731636013734,9.49563223,210.05,209.98,9.49563223]
[1731636013934,29.49563223,210.04,209.97,9.49563223]
[1731636014430,20.0,210.04,209.97,9.49563223]
[1731636014729,20.0,210.05,209.99,9.49563223]
[1731636014928,9.49563223,210.04,209.97,9.49563223]
[1731636015162,9.49563223,210.03,209.96,9.49563223]
[1731636015338,9.49563223,210.02,209.95,9.49563223]
[1731636015725,9.49563223,210.06,209.99,9.49563223]
[1731636016026,9.49563223,210.07,209.99,9.49563223]
[1731636017038,20.0,210.06,209.99,9.49563223]
[1731636017438,9.49563223,210.07,209.99,9.49563223]
[1731636017734,9.49563223,210.06,209.99,9.49563223]
[1731636017932,9.49563223,210.07,210.0,9.49563223]
[1731636018140,15.92693223,210.08,210.01,9.49563223]
[1731636018318,178.95683223,210.09,210.02,9.49563223]
[1731636018509,14.25523223,210.1,210.02,9.49563223]
[1731636018716,9.49563223,210.11,210.04,9.49563223]
[1731636019214,9.49563223,210.12,210.05,9.49563223]
[1731636019933,14.25493223,210.12,210.05,9.49563223]
[1731636020735,20.0,210.11,210.05,9.49563223]
[1731636021318,29.49563223,210.11,210.04,9.49563223]
[1731636021516,9.49563223,210.11,210.04,9.49563223]
[1731636022425,14.25503223,210.11,210.04,9.49563223]
[1731636023713,9.49563223,210.1,210.03,9.49563223]
[1731636023938,9.49563223,210.07,209.95,22.09606328]
[1731636024233,9.49563223,210.07,209.99,9.49563223]
[1731636024539,9.49563223,210.05,209.98,9.49563223]
[1731636024724,9.49563223,210.03,209.96,9.49563223]
[1731636024926,9.49563223,210.01,209.95,15.95286328]
[1731636025129,9.49563223,210.0,209.95,15.2387]
[1731636025437,9.49563223,210.01,209.95,15.2387]
[1731636025622,9.49563223,210.04,209.97,9.49563223]
[1731636025818,9.49563223,210.02,209.95,24.73433223]
[1731636026021,9.49563223,210.01,209.95,15.2387]
[1731636026324,9.49563223,210.02,209.95,24.73433223]
[1731636026521,9.49563223,210.03,209.96,9.49563223]
[1731636027036,9.49563223,210.04,209.97,9.49563223]
[1731636027227,4.76,210.09,210.0,9.49563223]
[1731636027431,9.49563223,210.07,209.99,9.49563223]
[1731636027631,9.49563223,210.06,209.99,9.49563223]
[1731636027942,199.58252892,210.12,210.0,9.49563223]
[1731636027943,9.49563223,210.07,210.0,9.49563223]
[1731636029141,4.7598,210.1,210.02,9.49563223]
[1731636029439,4.7598,210.1,210.05,9.49563223]
[1731636029934,14.25493223,210.12,210.05,9.49563223]
[1731636030832,169.02892387,210.18,210.07,14.83296405]
[1731636031014,14.83296405,210.16,210.09,14.83296405]
[1731636031718,14.83296405,210.15,210.08,14.83296405]
[1731636032117,24.7587,210.14,210.08,14.83296405]
[1731636033252,4.7584,210.16,210.1,14.83296405]
[1731636034632,24.7584,210.16,210.1,14.83296405]
[1731636036040,11.33001001,210.23,210.0,31.23836405]
[1731636036041,4.7564,210.24,210.13,14.83296405]
[1731636036234,14.83296405,210.2,210.13,14.83296405]
[1731636036440,14.83296405,210.18,210.1,14.83296405]
[1731636036840,14.83296405,210.18,210.11,14.83296405]
[1731636037040,14.83296405,210.2,210.13,14.83296405]
[1731636037237,161.6,210.22,210.16,14.83296405]
[1731636037439,19.58936405,210.24,210.17,14.83296405]
[1731636037744,14.83296405,210.23,210.16,14.83296405]
[1731636038442,20.0,210.22,210.17,14.83296405]
[1731636038647,24.7569,210.23,210.17,14.83296405]
[1731636038844,24.7569,210.23,210.15,14.83296405]
[1731636038845,39.58986405,210.23,210.15,14.83296405]
[1731636039050,14.83296405,210.2,210.12,30.73276405]
[1731636039345,14.83296405,210.2,210.13,14.83296405]
[1731636039547,24.7569,210.23,210.12,15.8998]
[1731636039548,14.83296405,210.18,210.12,15.8998]
[1731636039725,14.83296405,210.17,210.12,15.8998]
[1731636040044,14.83296405,210.16,210.07,16.1588]
[1731636040245,14.83296405,210.12,210.07,16.1588]
[1731636040544,14.83296405,210.12,210.06,14.83296405]
[1731636040748,14.83296405,210.14,210.08,14.83296405]
[1731636040926,0.12549,210.18,210.02,16.1588]
[1731636040927,14.83296405,210.16,210.1,14.83296405]
[1731636041127,14.83296405,210.14,210.07,14.83296405]
[1731636041349,20.12549,210.18,210.03,14.83296405]
[1731636041537,14.83296405,210.12,210.05,14.83296405]
[1731636041734,14.83296405,210.13,210.06,14.83296405]
[1731636041936,14.83296405,210.14,210.07,14.83296405]
[1731636042151,176.43296405,210.18,210.11,14.83296405]
[1731636042352,14.83296405,210.18,210.12,14.83296405]
[1731636042525,19.59076405,210.18,210.12,14.83296405]
[1731636042730,19.59076405,210.18,210.11,14.83296405]
[1731636042942,14.83296405,210.17,210.1,14.83296405]
[1731636043146,14.83296405,210.16,210.02,16.1588]
[1731636043347,14.83296405,210.12,210.04,14.83296405]
[1731636043853,14.83296405,210.12,210.05,14.83296405]
[1731636044036,14.83296405,210.14,210.07,14.83296405]
[1731636044234,14.83296405,210.16,210.02,16.1588]
[1731636044444,19.59096405,210.17,210.1,14.83296405]
[1731636044831,4.758,210.17,210.11,14.83296405]
[1731636045037,19.59096405,210.17,210.1,14.83296405]
[1731636046050,19.59096405,210.17,210.05,14.83296405]
[1731636046051,14.83296405,210.12,210.05,14.83296405]
[1731636046257,14.83296405,210.11,210.04,14.83296405]
[1731636046754,14.83296405,210.13,210.06,14.83296405]
[1731636047052,19.59096405,210.17,210.1,14.83296405]
[1731636048453,14.83296405,210.16,210.09,14.83296405]
[1731636048749,4.758,210.17,210.1,14.83296405]
[1731636048750,19.59096405,210.17,210.1,14.83296405]
[1731636049175,19.59096405,210.17,210.09,14.83296405]
[1731636049468,19.58986405,210.23,210.16,14.83296405]
[1731636050483,4.7569,210.23,210.17,14.83296405]
[1731636051058,20.0,210.22,210.16,14.83296405]
[1731636051769,4.7569,210.23,210.17,14.83296405]
[1731636052546,20.0,210.22,210.15,14.83296405]
[1731636052751,14.83296405,210.17,210.11,15.5693]
[1731636053466,14.83296405,210.2,210.13,14.83296405]
[1731636053653,20.0,210.19,210.13,14.83296405]
[1731636054542,34.83296405,210.19,210.12,14.83296405]
[1731636054745,20.0,210.19,210.13,14.83296405]
[1731636054946,4.757,210.22,210.16,14.83296405]
[1731636055254,14.83296405,210.21,210.14,14.83296405]
[1731636055648,14.83296405,210.21,210.11,15.5693]
[1731636055649,14.83296405,210.21,210.13,14.83296405]
[1731636055969,14.83296405,210.21,210.14,14.83296405]
[1731636057159,14.83296405,210.19,210.12,14.83296405]
[1731636057367,13.9844,210.28,210.16,14.83296405]
[1731636057668,20.0,210.22,210.16,14.83296405]
[1731636057847,34.83296405,210.22,210.15,14.83296405]
[1731636058049,14.83296405,210.21,210.13,14.83296405]
[1731636058248,24.757,210.22,210.13,14.83296405]
[1731636058249,14.83296405,210.2,210.13,14.83296405]
[1731636058645,14.95845405,210.21,210.13,14.83296405]
[1731636058881,20.0,210.2,210.13,14.83296405]
[1731636059258,24.7575,210.2,210.13,14.83296405]
[1731636059767,24.7575,210.2,210.15,14.83296405]
[1731636059945,4.7557,210.27,210.19,14.83296405]
[1731636060446,14.83296405,210.26,210.19,14.83296405]
[1731636060850,14.83296405,210.23,210.16,14.83296405]
[1731636061068,14.83296405,210.21,210.14,14.83296405]
[1731636061371,19.59016405,210.21,210.14,14.83296405]
[1731636061768,0.12549,210.26,210.15,14.83296405]
[1731636061769,14.83296405,210.22,210.15,14.83296405]
[1731636062359,14.83296405,210.23,210.16,14.83296405]
[1731636062669,14.83296405,210.22,210.15,14.83296405]
[1731636063075,19.58986405,210.22,210.15,14.83296405]
[1731636063379,34.83296405,210.21,210.17,0.58742922]
[1731636063969,14.83296405,210.2,210.17,0.58742922]
[1731636064174,20.0,210.21,210.17,0.58742922]
[1731636064774,4.7564,210.25,210.19,14.83296405]
[1731636064954,4.756,210.26,210.17,0.58742922]
[1731636065161,19.58896405,210.26,210.19,14.83296405]
[1731636065553,14.95845405,210.24,210.17,0.58742922]
[1731636065863,14.83296405,210.22,210.17,0.58742922]
[1731636066070,20.0,210.21,210.17,0.58742922]
[1731636066264,13.9844,210.28,210.2,14.83296405]
[1731636066265,14.83296405,210.27,210.2,14.83296405]
[1731636066458,14.83296405,210.27,210.17,0.58742922]
[1731636066459,4.7558,210.27,210.18,14.83296405]
[1731636066663,14.83296405,210.24,210.17,0.58742922]
[1731636066868,14.83296405,210.25,210.18,14.83296405]
[1731636067064,4.7564,210.24,210.18,14.83296405]
[1731636067655,24.7564,210.24,210.18,14.83296405]
[1731636068860,39.58936405,210.24,210.17,0.58742922]
[1731636069983,14.83296405,210.22,210.17,0.58742922]
[1731636070284,14.83296405,210.2,210.17,0.58742922]
[1731636070758,58.60984805,210.18,210.17,0.58742922]
[1731636070963,58.73533805,210.18,210.17,0.58742922]
[1731636071273,205.502374,210.17,210.05,15.9041]
[1731636071476,23.776884,210.08,210.05,15.9041]
[1731636071665,23.776884,210.08,210.02,14.83296405]
[1731636071868,38.60984805,210.08,210.01,14.83296405]
[1731636072063,14.83296405,210.1,210.03,14.83296405]
[1731636072361,14.83296405,210.1,210.0,16.0908]
[1731636072362,20.0,210.06,210.0,16.0908]
[1731636072557,23.776884,210.05,210.0,16.0908]
[1731636072957,23.776884,210.06,210.0,30.92376405]
[1731636073383,23.776884,210.07,210.01,14.83296405]
[1731636073575,23.776884,210.06,210.01,14.83296405]
[1731636073966,19.59176405,210.14,210.05,14.83296405]
[1731636074164,4.7584,210.16,210.09,14.83296405]
[1731636074385,161.6,210.2,210.05,15.0432]
[1731636074564,0.12549,210.2,210.05,15.0432]
[1731636074765,4.7568,210.23,210.06,0.1]
[1731636074965,19.58926405,210.25,210.17,14.83296405]
[1731636075584,14.83296405,210.23,210.15,14.83296405]
[1731636075787,14.83296405,210.23,210.16,14.83296405]
[1731636076083,19.58926405,210.25,210.17,14.83296405]
[1731636076387,19.58926405,210.25,210.18,14.83296405]
[1731636076687,14.83296405,210.24,210.17,14.83296405]
[1731636076892,23.70441855,210.24,210.17,23.70441855]
[1731636077461,23.70441855,210.3,210.23,23.70441855]
[1731636077682,23.70441855,210.32,210.25,23.70441855]
[1731636077867,28.45911855,210.32,210.25,23.70441855]
[1731636078193,23.70441855,210.31,210.24,23.70441855]
[1731636078681,28.45911855,210.32,210.25,23.70441855]
[1731636078994,47.48130255,210.3,210.23,15.9574]
[1731636079161,20.0,210.31,210.23,15.9574]
[1731636079162,23.776884,210.27,210.23,15.9574]
[1731636079363,23.70441855,210.24,210.17,39.66181855]
[1731636079658,23.70441855,210.24,210.12,6.4498]
[1731636079659,23.776884,210.17,210.12,21.9914]
[1731636079863,23.776884,210.17,210.12,15.5416]
[1731636080063,23.70441855,210.16,210.12,15.5416]
[1731636080365,23.776884,210.15,210.12,15.5416]
[1731636080562,23.776884,210.15,210.07,6.5667]
[1731636080563,23.70441855,210.15,210.07,30.27111855]
[1731636080769,23.776884,210.14,210.07,30.27111855]
[1731636080985,23.776884,210.14,210.09,23.70441855]
[1731636081281,20.0,210.14,210.09,23.70441855]
[1731636081491,23.776884,210.13,210.09,23.70441855]
[1731636082283,23.776884,210.15,210.09,23.70441855]
[1731636082587,23.776884,210.15,210.08,23.70441855]
[1731636082882,0.1,210.22,210.1,23.70441855]
[1731636082883,23.776884,210.17,210.1,23.70441855]
[1731636083099,23.776884,210.15,210.08,23.70441855]
[1731636083387,23.776884,210.13,210.07,23.70441855]
[1731636083776,23.776884,210.13,210.08,23.70441855]
[1731636083973,23.776884,210.14,210.08,23.70441855]
[1731636084176,23.776884,210.18,210.12,23.70441855]
[1731636084483,166.3572,210.21,210.06,15.4858]
[1731636084484,47.48130255,210.15,210.06,15.4858]
[1731636084681,23.70441855,210.15,210.06,15.4858]
[1731636084870,23.776884,210.19,210.06,15.4858]
[1731636085073,23.70441855,210.16,210.06,15.4858]
[1731636085276,23.776884,210.15,210.09,23.70441855]
[1731636085476,23.776884,210.15,210.06,15.4858]
[1731636085477,23.776884,210.15,210.08,23.70441855]
[1731636085886,28.535484,210.15,210.08,23.70441855]
[1731636086290,23.776884,210.15,210.08,23.70441855]
[1731636086524,23.776884,210.13,210.06,15.4858]
[1731636086796,23.776884,210.11,210.06,15.4858]
[1731636087001,23.776884,210.12,210.06,15.4858]
[1731636087182,23.70441855,210.12,210.06,15.4858]
[1731636087384,43.70441855,210.11,210.04,0.12549]
[1731636087577,20.0,210.09,210.04,0.12549]
[1731636087777,43.70441855,210.07,210.04,0.12549]
[1731636087980,47.48130255,210.06,210.04,0.12549]
[1731636088181,23.70441855,210.05,210.04,0.12549]
[1731636088400,47.48130255,210.05,210.04,0.12549]
[1731636089676,23.776884,210.05,210.04,0.12549]
[1731636092787,67.48130255,210.05,210.04,0.12549]
[1731636093007,67.60679255,210.05,210.04,0.12549]
[1731636093985,229.20679255,210.05,210.04,0.12549]
[1731636096987,229.20679255,210.05,209.9,15.4618]
[1731636096988,48.663274,210.04,209.91,23.70441855]
[1731636097192,23.70441855,209.98,209.91,23.70441855]
[1731636099115,23.776884,209.97,209.91,23.70441855]
[1731636099811,169.4612,210.11,209.96,23.70441855]
[1731636100097,169.4612,210.11,209.91,0.2]
[1731636100098,4.76,210.09,210.02,23.70441855]
[1731636100302,28.46441855,210.09,210.02,23.70441855]
[1731636100488,28.46441855,210.09,210.01,23.70441855]
[1731636101709,23.776884,210.08,210.02,23.70441855]
[1731636102504,23.70441855,210.13,210.06,23.70441855]
[1731636102709,29.95551855,210.14,210.07,23.70441855]
[1731636102909,4.759,210.13,210.07,23.70441855]
[1731636103708,28.46341855,210.13,210.06,23.70441855]
[1731636103894,28.46341855,210.13,210.05,23.70441855]
[1731636104094,23.776884,210.12,210.05,23.70441855]
[1731636104309,20.0,210.11,210.05,23.70441855]
[1731636104695,23.776884,210.1,210.05,23.70441855]
[1731636105903,23.70441855,210.07,210.01,15.6738]
[1731636106103,67.48130255,210.03,209.96,15.8561]
[1731636106313,23.70441855,210.01,209.96,15.8561]
[1731636106494,23.776884,210.0,209.96,15.8561]
[1731636107884,52.24330255,210.0,209.96,15.8561]
[1731636108091,52.24330255,210.0,209.92,24.41857754]
[1731636108787,47.48130255,209.98,209.92,0.71415899]
[1731636108988,52.24370255,209.98,209.92,0.71415899]
[1731636109401,52.24370255,209.98,209.91,39.56051855]
[1731636109590,23.70441855,209.95,209.88,23.70441855]
[1731636109793,47.48130255,209.96,209.89,23.82990855]
[1731636110004,47.48130255,209.96,209.89,0.12549]
[1731636110517,23.776884,209.96,209.9,23.70441855]
[1731636111309,23.776884,209.96,209.89,23.82990855]
[1731636113701,23.776884,209.96,209.9,23.70441855]
[1731636115013,23.70441855,210.06,209.95,23.70441855]
[1731636115307,23.70441855,210.06,209.98,23.70441855]
[1731636115494,23.70441855,210.05,209.97,23.70441855]
[1731636116597,23.776884,210.04,209.97,23.70441855]
[1731636117097,47.48130255,210.04,209.97,23.70441855]
[1731636117414,47.48130255,210.04,209.96,23.70441855]
[1731636117610,23.776884,210.02,209.96,23.70441855]
[1731636118112,23.80441855,209.97,209.89,0.12549]
[1731636118316,72.37089255,209.9,209.89,0.12549]
[1731636120916,67.48130255,209.9,209.89,0.12549]
[1731636121318,67.60679255,209.9,209.89,0.12549]
[1731636122927,24.88989,209.89,209.86,0.71444169]
[1731636123097,43.82990855,209.87,209.86,0.71444169]
[1731636124604,48.59470855,209.87,209.86,0.71444169]
[1731636125005,72.37159255,209.87,209.86,0.71444169]
[1731636125202,48.667174,209.87,209.86,0.71444169]
[1731636125734,72.37159255,209.87,209.86,0.71444169]
[1731636128412,72.24610255,209.87,209.86,0.71444169]
[1731636128608,6.4962,209.95,209.86,0.71444169]
[1731636128609,23.70441855,209.91,209.86,0.71444169]
[1731636128813,23.70441855,209.93,209.86,24.41886024]
[1731636129708,23.70441855,209.97,209.9,23.70441855]
[1731636129909,23.70441855,209.99,209.92,23.70441855]
[1731636130117,23.70441855,210.0,209.93,23.70441855]
[1731636130423,23.70441855,210.01,209.94,23.70441855]
[1731636130607,23.70441855,210.03,209.96,23.70441855]
[1731636130809,23.70441855,210.02,209.95,23.70441855]
[1731636131712,23.776884,210.01,209.95,23.70441855]
[1731636134826,23.776884,210.01,209.94,23.70441855]
[1731636135511,23.776884,210.01,209.9,23.70441855]
[1731636135512,47.48130255,209.97,209.9,23.70441855]
[1731636135707,23.776884,209.96,209.91,23.70441855]
[1731636135903,23.776884,209.96,209.93,23.70441855]
[1731636136411,23.776884,209.97,209.91,23.70441855]
[1731636137120,47.48130255,209.97,209.9,23.70441855]
[1731636137806,23.70441855,209.96,209.89,23.70441855]
[1731636138006,23.776884,209.95,209.89,23.70441855]
[1731636138206,23.776884,209.95,209.87,22.6443]
[1731636138207,23.70441855,209.94,209.87,22.6443]
[1731636138412,23.776884,209.93,209.87,22.6443]
[1731636138620,23.70441855,209.9,209.87,16.0356]
[1731636138910,23.776884,209.87,209.86,0.71444169]
[1731636139206,47.48130255,209.87,209.86,0.71444169]
[1731636139617,67.60679255,209.87,209.86,0.71444169]
[1731636139836,67.48130255,209.87,209.86,0.71444169]
[1731636140009,67.60679255,209.87,209.86,0.71444169]
[1731636140931,72.37159255,209.87,209.86,0.71444169]
[1731636147940,67.60679255,209.87,209.86,0.71444169]
[1731636148730,4.7647,209.88,209.86,0.71444169]
[1731636148731,23.70441855,209.88,209.86,0.71444169]
[1731636148920,23.70441855,209.87,209.86,0.71444169]
[1731636149537,23.70441855,209.9,209.86,0.71444169]
[1731636149734,23.70441855,209.92,209.86,0.71444169]
[1731636151247,23.70441855,209.9,209.86,0.71444169]
[1731636151418,23.70441855,209.88,209.86,0.71444169]
[1731636151618,23.776884,209.87,209.86,0.71444169]
[1731636152427,28.541684,209.87,209.86,0.71444169]
[1731636152633,23.776884,209.87,209.86,0.71444169]
[1731636153326,23.70441855,209.92,209.86,0.71444169]
[1731636153525,23.70441855,209.9,209.86,0.71444169]
[1731636154446,23.70441855,209.93,209.86,24.41886024]
[1731636154824,23.70441855,209.94,209.86,24.41886024]
[1731636155743,23.70441855,209.93,209.86,24.41886024]
[1731636155917,47.48130255,209.92,209.87,15.739]
[1731636156122,23.776884,209.87,209.86,0.71444169]
[1731636156316,67.48130255,209.87,209.86,0.71444169]
[1731636157123,67.60679255,209.87,209.86,0.71444169]
[1731636157341,23.776884,209.87,209.86,0.71444169]
[1731636158331,161.6,209.94,209.86,0.71444169]
[1731636158332,23.776884,209.91,209.86,0.71444169]
[1731636158531,23.82990855,209.91,209.86,0.71444169]
[1731636158832,23.776884,209.92,209.86,24.41886024]
[1731636159242,23.70441855,209.94,209.86,24.41886024]
[1731636159942,23.70441855,209.96,209.89,23.70441855]
[1731636160149,23.70441855,209.97,209.9,23.70441855]
[1731636160843,23.70441855,209.98,209.91,23.70441855]
[1731636161021,23.70441855,210.03,209.95,23.70441855]
[1731636161224,23.70441855,210.03,209.92,16.3332]
[1731636161421,23.70441855,210.02,209.94,23.70441855]
[1731636162044,23.70441855,210.01,209.92,16.3332]
[1731636162357,23.70441855,209.95,209.92,16.3332]
[1731636162525,23.776884,209.94,209.92,16.3332]
[1731636163122,23.776884,209.95,209.92,16.3332]
[1731636163544,23.776884,209.96,209.92,16.3332]
[1731636163735,47.48130255,209.96,209.92,16.3332]
[1731636164526,23.776884,209.96,209.92,16.3332]
[1731636164729,23.776884,209.97,209.92,40.03761855]
[1731636165034,23.70441855,209.97,209.92,16.3332]
[1731636165344,47.48130255,209.96,209.92,16.3332]
[1731636165537,23.70441855,209.95,209.92,16.3332]
[1731636165734,23.776884,209.94,209.92,16.3332]
[1731636165936,23.776884,209.95,209.92,16.3332]
[1731636167652,23.776884,209.96,209.92,16.3332]
[1731636167857,23.776884,209.97,209.92,16.3332]
[1731636168528,47.48130255,209.97,209.92,16.3332]
[1731636169747,23.70441855,209.95,209.92,16.3332]
[1731636169949,23.776884,209.94,209.92,16.3332]
[1731636171457,23.776884,209.96,209.92,16.3332]
[1731636172655,0.12549,210.01,209.92,16.3332]
[1731636172656,23.70441855,209.98,209.92,16.3332]
[1731636172832,23.70441855,210.01,209.93,23.70441855]
[1731636173633,23.70441855,210.02,209.94,23.70441855]
[1731636173838,161.6,210.06,209.96,23.70441855]
[1731636173839,23.70441855,210.03,209.96,23.70441855]
[1731636174048,23.776884,210.02,209.96,23.70441855]
[1731636174352,23.70441855,210.04,209.97,23.70441855]
[1731636174936,23.70441855,210.04,209.96,23.70441855]
[1731636175136,23.70441855,210.02,209.94,23.70441855]
[1731636175553,23.776884,210.01,209.94,23.70441855]
[1731636176658,47.48130255,210.03,209.95,23.70441855]
[1731636177134,52.24250255,210.03,209.95,23.70441855]
[1731636180842,0.12549,209.98,209.92,16.3332]
[1731636181044,23.70441855,209.95,209.92,16.3332]
[1731636181242,23.70441855,210.0,209.86,16.71164169]
[1731636181243,23.776884,209.92,209.86,16.71164169]
[1731636181462,47.48130255,209.92,209.86,16.71164169]
[1731636181638,23.776884,209.92,209.86,16.71164169]
[1731636185461,23.70441855,209.91,209.86,16.71164169]
[1731636185657,23.776884,209.9,209.86,16.71164169]
[1731636186858,23.776884,209.93,209.88,23.70441855]
[1731636187060,23.70441855,209.96,209.88,23.70441855]
[1731636187361,23.70441855,209.92,209.86,16.71164169]
[1731636187865,23.70441855,209.91,209.86,16.71164169]
[1731636188043,23.70441855,209.92,209.86,16.71164169]
[1731636188557,28.540784,209.91,209.86,16.71164169]
[1731636188867,23.776884,209.91,209.86,16.71164169]
[1731636189251,38.63749332,209.91,209.86,16.71164169]
[1731636189644,43.40139332,209.91,209.86,16.71164169]
[1731636190648,14.86060932,209.88,209.86,0.71444169]
[1731636190854,14.86060932,209.87,209.86,0.71444169]
[1731636191164,38.76298332,209.87,209.86,0.71444169]
[1731636191358,58.76298332,209.87,209.86,0.71444169]
[1731636193067,48.667374,209.86,209.76,15.7612]
[1731636193257,23.776884,209.81,209.76,30.62180932]
[1731636193967,23.776884,209.82,209.76,30.62180932]
[1731636194167,14.86060932,209.85,209.78,14.86060932]
[1731636194357,14.86060932,209.85,209.76,15.7612]
[1731636194358,23.776884,209.85,209.8,14.86060932]
[1731636194558,23.776884,209.86,209.8,14.86060932]
[1731636195063,14.86060932,209.92,209.85,14.86060932]
[1731636195566,14.86060932,209.91,209.84,14.86060932]
[1731636196966,23.776884,209.9,209.84,14.86060932]
[1731636198073,43.902374,209.84,209.76,15.7612]
[1731636198249,23.776884,209.84,209.8,14.86060932]
[1731636198450,23.776884,209.86,209.8,14.86060932]
[1731636198769,14.86060932,209.87,209.76,15.7612]
[1731636198770,23.776884,209.87,209.76,15.7612]
[1731636198970,38.63749332,209.87,209.8,14.86060932]
[1731636199170,38.63749332,209.87,209.79,14.86060932]
[1731636200552,23.776884,209.85,209.79,14.86060932]
[1731636200753,38.63749332,209.85,209.79,14.86060932]
[1731636201358,14.86060932,209.81,209.76,15.7612]
[1731636201550,23.776884,209.8,209.76,15.7612]
[1731636202279,14.86060932,209.81,209.76,15.7612]
[1731636202280,14.86060932,209.79,209.76,15.7612]
[1731636202457,14.86060932,209.79,209.72,14.86060932]
[1731636202458,28.544184,209.76,209.7,15.2759]
[1731636202657,23.776884,209.73,209.7,15.2759]
[1731636202859,38.63749332,209.73,209.7,15.2759]
[1731636204366,23.776884,209.73,209.7,15.2759]
[1731636206065,47.59360167,209.73,209.65,39.19041767]
[1731636206258,23.81671767,209.71,209.65,15.3737]
[1731636206460,23.81671767,209.69,209.65,15.3737]
[1731636206664,47.59360167,209.67,209.64,0.4539427]
[1731636206868,47.59360167,209.65,209.64,0.4539427]
[1731636207064,67.71909167,209.65,209.64,0.4539427]
[1731636207762,91.53580934,209.65,209.49,16.5376]
[1731636207962,43.81671767,209.62,209.49,16.5376]
[1731636208159,23.81671767,209.55,209.49,16.5376]
[1731636208597,23.81671767,209.54,209.49,16.5376]
[1731636209577,23.81671767,209.53,209.49,16.5376]
[1731636209971,23.776884,209.52,209.49,16.5376]
[1731636210369,23.81671767,209.59,209.51,23.81671767]
[1731636210584,23.776884,209.59,209.53,23.81671767]
[1731636210772,23.81671767,209.6,209.53,23.81671767]
[1731636210773,47.59360167,209.6,209.53,23.81671767]
[1731636211165,47.59360167,209.6,209.52,23.81671767]
[1731636211577,23.81671767,209.57,209.5,23.81671767]
[1731636211761,23.776884,209.56,209.52,23.81671767]
[1731636211962,23.81671767,209.59,209.52,23.81671767]
[1731636211963,23.776884,209.58,209.52,23.81671767]
[1731636212388,23.81671767,209.58,209.51,23.81671767]
[1731636212568,23.81671767,209.58,209.5,23.81671767]
[1731636212569,47.59360167,209.57,209.5,23.81671767]
[1731636213071,23.776884,209.57,209.5,23.81671767]
[1731636213678,23.776884,209.57,209.52,23.81671767]
[1731636213886,23.81671767,209.56,209.49,16.5376]
[1731636214086,23.81671767,209.54,209.49,16.5376]
[1731636214378,47.59360167,209.57,209.5,23.81671767]
[1731636214587,23.776884,209.57,209.49,16.5376]
[1731636214963,47.59360167,209.55,209.49,16.5376]